fUST/lending_fUST_20260101
["ID","MTS","AMOUNT","RATE_DAILY","PERIOD"]
[400258971,1767233449345,-632.78,0.00026575,2]
[400258972,1767233449355,-1267.28,0.00026575,2]
[400258973,1767233449364,-7541.97,0.00026575,2]
[400258974,1767233449375,-500.0,0.00026575,2]
[400258975,1767233449384,-4618.33,0.00026575,2]
[400258976,1767233449394,-689.27,0.00026575,2]
[400258977,1767233449403,-1292.45,0.00026575,2]
[400258978,1767233449413,-1297.56,0.00026575,2]
[400258979,1767233449422,-994.81,0.00026575,2]
[400258980,1767233449432,-1041.02,0.00026575,2]
[400258981,1767233449442,-1307.72,0.00026575,2]
[400258982,1767233449451,-480.92480792,0.00026576,2]
[400258983,1767233449461,-688.49839244,0.00026599,2]
[400258984,1767233449470,-1109.1354,0.00026676,2]
[400258985,1767233449480,-160.0,0.00026758,8]
[400258986,1767233449489,-1177.615816,0.00026761,2]
[400258987,1767233449499,-260.78,0.000268,2]
[400258988,1767233449508,-1041.66666667,0.000268,7]
[400258989,1767233449517,-741.71,0.00026849,2]
[400258990,1767233449527,-994.95,0.00026849,2]
[400258991,1767233449536,-356.82437698,0.00026849,2]
[400258992,1767233449545,-1377.56,0.00026849,2]
[400258993,1767233449555,-151.0,0.00026849,7]
[400258994,1767233449565,-151.0,0.00026849,7]
[400258995,1767233449574,-151.0,0.00026849,7]
[400258996,1767233449584,-500.0,0.00026849,2]
[400258997,1767233449594,-632.78,0.00026849,2]
[400258998,1767233449604,-151.0,0.00026849,7]
[400258999,1767233449614,-151.0,0.00026849,7]
[400259000,1767233449623,-151.0,0.00026849,7]
[400259001,1767233449632,-491.980544,0.00026849,7]
[400259002,1767233449642,-491.980544,0.00026849,7]
[400259003,1767233449652,-491.980544,0.00026849,7]
[400259004,1767233449662,-491.980545,0.00026849,7]
[400259005,1767233449671,-428.591324,0.00026849,7]
[400259006,1767233449681,-428.591324,0.00026849,7]
[400259007,1767233449690,-1267.28,0.00026849,2]
[400259008,1767233449700,-428.591324,0.00026849,7]
[400259009,1767233449710,-428.59133,0.00026849,7]
[400259010,1767233449719,-7541.97,0.00026849,2]
[400259011,1767233449729,-500.0,0.00026849,2]
[400259012,1767233449739,-4618.33,0.00026849,2]
[400259013,1767233449748,-689.27,0.00026849,2]
[400259014,1767233449758,-1292.45,0.00026849,2]
[400259015,1767233449768,-1297.56,0.00026849,2]
[400259016,1767233449777,-994.81,0.00026849,2]
[400259017,1767233449787,-1041.02,0.00026849,2]
[400259018,1767233449796,-1307.72,0.00026849,2]
[400259019,1767233449805,-181.0,0.00026849,22]
[400259020,1767233449814,-550.0,0.00026849,2]
[400259021,1767233449823,-21611.49,0.000269,2]
[400259022,1767233449832,-272.97,0.000271,7]
[400259023,1767233449842,-741.71,0.00027123,2]
[400259024,1767233449851,-994.95,0.00027123,2]
[400259025,1767233449860,-356.82437698,0.00027123,2]
[400259026,1767233449870,-1377.56,0.00027123,2]
[400259027,1767233449879,-500.0,0.00027123,2]
[400259028,1767233449888,-632.78,0.00027123,2]
[400259029,1767233449898,-1267.28,0.00027123,2]
[400259030,1767233449907,-7541.97,0.00027123,2]
[400259031,1767233449917,-500.0,0.00027123,2]
[400259032,1767233449928,-4618.33,0.00027123,2]
[400259033,1767233449941,-689.27,0.00027123,2]
[400259034,1767233449950,-1292.45,0.00027123,2]
[400259035,1767233449959,-1297.56,0.00027123,2]
[400259036,1767233449968,-994.81,0.00027123,2]
[400259037,1767233449978,-1041.02,0.00027123,2]
[400259038,1767233449988,-1307.72,0.00027123,2]
[400259039,1767233449998,-713.97283296,0.00027147,2]
[400259040,1767233450007,-151.0,0.00027151,7]
[400259041,1767233450016,-611.56249952,0.00027178,2]
[400259042,1767233450025,-329.0,0.00027185,7]
[400259043,1767233450036,-1142.44,0.000272,14]
[400259044,1767233450045,-416.0,0.00027242,2]
[400259045,1767233450055,-416.0,0.00027242,2]
[400259046,1767233450064,-150.0,0.00027242,2]
[400259047,1767233450074,-160.0,0.00027313,9]
[400259048,1767233450084,-568.83559814,0.0002739,7]
[400259049,1767233450093,-150.0,0.0002739,2]
[400259050,1767233450102,-741.71,0.00027397,2]
[400259051,1767233450111,-994.95,0.00027397,2]
[400259052,1767233450120,-356.82437698,0.00027397,2]
[400259053,1767233450129,-165.29371561,0.00027397,2]
[400259054,1767233450138,-1377.56,0.00027397,2]
[400259055,1767233450147,-500.0,0.00027397,2]
[400259056,1767233450156,-632.78,0.00027397,2]
[400259057,1767233450166,-1267.28,0.00027397,2]
[400259058,1767233450175,-7541.97,0.00027397,2]
[400259059,1767233450185,-500.0,0.00027397,2]
[400259060,1767233450194,-4618.33,0.00027397,2]
[400259061,1767233450203,-689.27,0.00027397,2]
[400259062,1767233450212,-1292.45,0.00027397,2]
[400259063,1767233450222,-1297.56,0.00027397,2]
[400259064,1767233450231,-994.81,0.00027397,2]
[400259065,1767233450241,-1041.02,0.00027397,2]
[400259066,1767233450251,-1307.72,0.00027397,2]
[400259067,1767233450340,-223.7621211,0.00027397,2]
[400259068,1767233450350,-303.56042823,0.00027397,5]
[400259069,1767233450360,-299.0,0.00027397,2]
[400259070,1767233450369,-299.0,0.00027397,2]
[400259071,1767233450379,-299.0,0.00027397,2]
[400259072,1767233450388,-299.0,0.00027397,2]
[400259073,1767233450397,-299.0,0.00027397,2]
[400259074,1767233450406,-299.0,0.00027397,2]
[400259075,1767233450417,-299.0,0.00027397,2]
[400259076,1767233450427,-299.0,0.00027397,2]
[400259077,1767233450437,-299.0,0.00027397,2]
[400259078,1767233450446,-299.0,0.00027397,2]
[400259079,1767233450456,-299.0,0.00027397,2]
[400259080,1767233450466,-299.0,0.00027397,2]
[400259081,1767233450475,-299.0,0.00027397,2]
[400259082,1767233450485,-299.0,0.00027397,2]
[400259083,1767233450494,-299.0,0.00027397,2]
[400259084,1767233450503,-299.0,0.00027397,2]
[400259085,1767233450512,-299.0,0.00027397,2]
[400259086,1767233450522,-299.0,0.00027397,2]
[400259087,1767233450531,-299.0,0.00027397,2]
[400259088,1767233450540,-299.0,0.00027397,2]
[400259089,1767233450549,-299.0,0.00027397,2]
[400259090,1767233450559,-299.0,0.00027397,2]
[400259091,1767233450569,-299.0,0.00027397,2]
[400259092,1767233450578,-299.0,0.00027397,2]
[400259093,1767233450587,-299.0,0.00027397,2]
[400259094,1767233450597,-299.0,0.00027397,2]
[400259095,1767233450606,-299.0,0.00027397,2]
[400259096,1767233450615,-299.0,0.00027397,2]
[400259097,1767233450624,-299.0,0.00027397,2]
[400259098,1767233450633,-299.0,0.00027397,2]
[400259099,1767233450643,-299.0,0.00027397,2]
[400259100,1767233450652,-299.0,0.00027397,2]
[400259101,1767233450663,-299.0,0.00027397,2]
[400259102,1767233450672,-299.0,0.00027397,2]
[400259103,1767233450682,-299.0,0.00027397,2]
[400259104,1767233450691,-299.0,0.00027397,2]
[400259105,1767233450700,-299.0,0.00027397,2]
[400259106,1767233450710,-299.0,0.00027397,2]
[400259107,1767233450719,-299.0,0.00027397,2]
[400259108,1767233450728,-299.0,0.00027397,2]
[400259109,1767233450737,-299.0,0.00027397,2]
[400259110,1767233450747,-151.0,0.00027397,7]
[400259111,1767233450756,-151.0,0.00027397,7]
[400259112,1767233450766,-151.0,0.00027397,7]
[400259113,1767233450775,-161.822226,0.00027397,7]
[400259114,1767233450783,-151.0,0.00027397,7]
[400259115,1767233450793,-151.0,0.00027397,7]
[400259116,1767233450802,-151.0,0.00027397,7]
[400259117,1767233450811,-291.484508,0.00027397,7]
[400259118,1767233450820,-151.0,0.00027397,7]
[400259119,1767233450829,-151.0,0.00027397,7]
[400259120,1767233450839,-151.0,0.00027397,7]
[400259121,1767233450848,-151.0,0.00027397,7]
[400259122,1767233450857,-151.0,0.00027397,7]
[400259123,1767233450866,-151.0,0.00027397,7]
[400259124,1767233450877,-155.730776,0.00027397,7]
[400259125,1767233450887,-151.0,0.00027397,7]
[400259126,1767233450896,-151.0,0.00027397,7]
[400259127,1767233450905,-151.0,0.00027397,7]
[400259128,1767233450915,-151.0,0.00027397,7]
[400259129,1767233450924,-151.0,0.00027397,7]
[400259130,1767233450936,-151.0,0.00027397,7]
[400259131,1767233450946,-151.0,0.00027397,7]
[400259132,1767233450955,-151.0,0.00027397,7]
[400259133,1767233450964,-162.923711,0.00027397,7]
[400259134,1767233450975,-151.0,0.00027397,7]
[400259135,1767233450984,-151.0,0.00027397,7]
[400259136,1767233450993,-151.0,0.00027397,7]
[400259137,1767233451003,-151.0,0.00027397,7]
[400259138,1767233451013,-151.0,0.00027397,7]
[400259139,1767233451022,-151.0,0.00027397,7]
[400259140,1767233451031,-151.0,0.00027397,7]
[400259141,1767233451041,-151.0,0.00027397,7]
[400259142,1767233451050,-151.0,0.00027397,7]
[400259143,1767233451059,-151.0,0.00027397,7]
[400259144,1767233451069,-151.0,0.00027397,7]
[400259145,1767233451079,-151.0,0.00027397,7]
[400259146,1767233451088,-151.0,0.00027397,7]
[400259147,1767233451098,-164.732052,0.00027397,7]
[400259148,1767233451107,-151.0,0.00027397,7]
[400259149,1767233451116,-151.0,0.00027397,7]
[400259150,1767233451126,-151.0,0.00027397,7]
[400259151,1767233451135,-151.0,0.00027397,7]
[400259152,1767233451145,-151.0,0.00027397,7]
[400259153,1767233451154,-151.0,0.00027397,7]
[400259154,1767233451163,-151.0,0.00027397,7]
[400259155,1767233451172,-216.819422,0.00027397,7]
[400259156,1767233451182,-151.0,0.00027397,7]
[400259157,1767233451191,-151.0,0.00027397,7]
[400259158,1767233451200,-233.191837,0.00027397,7]
[400259159,1767233451209,-180.886306,0.00027397,7]
[400259160,1767233451219,-151.0,0.00027397,7]
[400259161,1767233451228,-151.0,0.00027397,7]
[400259162,1767233451237,-151.0,0.00027397,7]
[400259163,1767233451247,-151.0,0.00027397,7]
[400259164,1767233451256,-151.0,0.00027397,7]
[400259165,1767233451266,-151.0,0.00027397,7]
[400259166,1767233451275,-151.0,0.00027397,7]
[400259167,1767233451284,-151.0,0.00027397,7]
[400259168,1767233451293,-151.0,0.00027397,7]
[400259169,1767233451302,-151.0,0.00027397,7]
[400259170,1767233451312,-151.0,0.00027397,7]
[400259171,1767233451321,-151.0,0.00027397,7]
[400259172,1767233451330,-151.0,0.00027397,7]
[400259173,1767233451340,-151.0,0.00027397,7]
[400259174,1767233451349,-151.0,0.00027397,7]
[400259175,1767233451358,-151.0,0.00027397,7]
[400259176,1767233451367,-168.827111,0.00027397,7]
[400259177,1767233451377,-151.0,0.00027397,7]
[400259178,1767233451386,-151.0,0.00027397,7]
[400259179,1767233451395,-151.0,0.00027397,7]
[400259180,1767233451405,-151.0,0.00027397,7]
[400259181,1767233451414,-151.0,0.00027397,7]
[400259182,1767233451423,-151.0,0.00027397,7]
[400259183,1767233451433,-151.0,0.00027397,7]
[400259184,1767233451443,-151.0,0.00027397,7]
[400259185,1767233451452,-151.0,0.00027397,7]
[400259186,1767233451462,-151.0,0.00027397,7]
[400259187,1767233451471,-151.0,0.00027397,7]
[400259188,1767233451481,-162.772379,0.00027397,7]
[400259189,1767233451491,-151.0,0.00027397,7]
[400259190,1767233451500,-151.0,0.00027397,7]
[400259191,1767233451510,-151.0,0.00027397,7]
[400259192,1767233451520,-151.0,0.00027397,7]
[400259193,1767233451529,-151.0,0.00027397,7]
[400259194,1767233451539,-151.0,0.00027397,7]
[400259195,1767233451548,-151.0,0.00027397,7]
[400259196,1767233451558,-151.0,0.00027397,7]
[400259197,1767233451567,-151.0,0.00027397,7]
[400259198,1767233451576,-151.0,0.00027397,7]
[400259199,1767233451586,-151.0,0.00027397,7]
[400259200,1767233451595,-207.414308,0.00027397,7]
[400259201,1767233451608,-152.697403,0.00027397,7]
[400259202,1767233451617,-152.697403,0.00027397,7]
[400259203,1767233451629,-152.697403,0.00027397,7]
[400259204,1767233451641,-152.697403,0.00027397,7]
[400259205,1767233451651,-152.697403,0.00027397,7]
[400259206,1767233451660,-152.697403,0.00027397,7]
[400259207,1767233451670,-152.697403,0.00027397,7]
[400259208,1767233451679,-152.697403,0.00027397,7]
[400259209,1767233451688,-152.697403,0.00027397,7]
[400259210,1767233451698,-152.697403,0.00027397,7]
[400259211,1767233451707,-152.697403,0.00027397,7]
[400259212,1767233451717,-152.697403,0.00027397,7]
[400259213,1767233451726,-152.697403,0.00027397,7]
[400259214,1767233451736,-152.697403,0.00027397,7]
[400259215,1767233451745,-152.697403,0.00027397,7]
[400259216,1767233451755,-152.697403,0.00027397,7]
[400259217,1767233451764,-152.697403,0.00027397,7]
[400259218,1767233451773,-152.697403,0.00027397,7]
[400259219,1767233451783,-152.697403,0.00027397,7]
[400259220,1767233451792,-152.697412,0.00027397,7]
[400259221,1767233451800,-151.0,0.00027397,7]
[400259222,1767233451810,-151.0,0.00027397,7]
[400259223,1767233451820,-151.0,0.00027397,7]
[400259224,1767233451829,-151.0,0.00027397,7]
[400259225,1767233451838,-151.0,0.00027397,7]
[400259226,1767233451847,-151.0,0.00027397,7]
[400259227,1767233451856,-151.0,0.00027397,7]
[400259228,1767233451865,-151.0,0.00027397,7]
[400259229,1767233451874,-151.0,0.00027397,7]
[400259230,1767233451883,-151.0,0.00027397,7]
[400259231,1767233451893,-151.0,0.00027397,7]
[400259232,1767233451902,-284.418765,0.00027397,7]
[400259233,1767233451911,-151.0,0.00027397,7]
[400259234,1767233451920,-151.0,0.00027397,7]
[400259235,1767233451931,-151.0,0.00027397,7]
[400259236,1767233451941,-151.0,0.00027397,7]
[400259237,1767233452025,-151.0,0.00027397,7]
[400259238,1767233452034,-151.0,0.00027397,7]
[400259239,1767233452043,-151.0,0.00027397,7]
[400259240,1767233452053,-165.533117,0.00027397,7]
[400259241,1767233452062,-195.765928,0.00027397,7]
[400259242,1767233452071,-151.0,0.00027397,7]
[400259243,1767233452080,-151.0,0.00027397,7]
[400259244,1767233452089,-151.0,0.00027397,7]
[400259245,1767233452098,-151.0,0.00027397,7]
[400259246,1767233452107,-151.0,0.00027397,7]
[400259247,1767233452117,-151.0,0.00027397,7]
[400259248,1767233452126,-151.0,0.00027397,7]
[400259249,1767233452135,-151.0,0.00027397,7]
[400259250,1767233452144,-151.0,0.00027397,7]
[400259251,1767233452153,-186.008395,0.00027397,7]
[400259252,1767233452162,-151.0,0.00027397,7]
[400259253,1767233452172,-151.0,0.00027397,7]
[400259254,1767233452181,-151.0,0.00027397,7]
[400259255,1767233452191,-156.811925,0.00027397,7]
[400259256,1767233452201,-151.0,0.00027397,7]
[400259257,1767233452210,-151.0,0.00027397,7]
[400259258,1767233452220,-151.0,0.00027397,7]
[400259259,1767233452229,-151.0,0.00027397,7]
[400259260,1767233452239,-151.0,0.00027397,7]
[400259261,1767233452248,-151.0,0.00027397,7]
[400259262,1767233452258,-200.513708,0.00027397,7]
[400259263,1767233452267,-164.020604,0.00027397,7]
[400259264,1767233452276,-164.020604,0.00027397,7]
[400259265,1767233452285,-164.020604,0.00027397,7]
[400259266,1767233452295,-164.020604,0.00027397,7]
[400259267,1767233452304,-164.020604,0.00027397,7]
[400259268,1767233452313,-164.020604,0.00027397,7]
[400259269,1767233452323,-164.020604,0.00027397,7]
[400259270,1767233452331,-164.020604,0.00027397,7]
[400259271,1767233452341,-164.020604,0.00027397,7]
[400259272,1767233452351,-164.020604,0.00027397,7]
[400259273,1767233452361,-161.12692255,0.00027397,7]
[400259280,1767233759305,1138.87569499,0.000125,3]
[400259285,1767233872468,202.9,0.00028767,120]
[400259286,1767233970793,641.72337868,0.00028767,120]
[400259294,1767234102862,162.27930557,0.00010953,2]
[400259305,1767234322817,5000.0,0.00010954,2]
[400259310,1767234426202,-999.0,0.00010959,2]
[400259311,1767234426223,-577.0,0.00011173,2]
[400259312,1767234426242,-365.0,0.00011173,2]
[400259313,1767234426261,-194.0,0.00011173,2]
[400259314,1767234426281,-300.0,0.00011173,2]
[400259315,1767234426300,-300.0,0.00011173,2]
[400259316,1767234426324,-37.38619363,0.00011174,2]
[400259317,1767234427085,-135.65591689,0.00011174,2]
[400259318,1767234427105,-500.0,0.00011174,2]
[400259319,1767234427125,-397.61099035,0.00011174,2]
[400259320,1767234427145,-500.0,0.00011174,2]
[400259321,1767234427165,-500.0,0.00011174,2]
[400259322,1767234427186,-500.0,0.00011174,2]
[400259323,1767234427207,-568.53800896,0.00011174,2]
[400259324,1767234427227,-500.0,0.00011174,2]
[400259325,1767234427248,-500.0,0.00011174,2]
[400259326,1767234427269,-500.0,0.00011174,2]
[400259327,1767234427290,-500.0,0.00011174,2]
[400259328,1767234427314,-500.0,0.00011174,2]
[400259329,1767234427336,-398.55258125,0.00011174,2]
[400259330,1767234428095,-101.44741875,0.00011174,2]
[400259331,1767234428117,-500.0,0.00011174,2]
[400259332,1767234428141,-500.0,0.00011174,2]
[400259333,1767234428163,-500.0,0.00011174,2]
[400259334,1767234428186,-500.0,0.00011174,2]
[400259335,1767234428209,-248.90239425,0.00011174,2]
[400259336,1767234428236,-500.0,0.00011174,2]
[400259337,1767234428259,-500.0,0.00011174,2]
[400259338,1767234428282,-500.0,0.00011174,2]
[400259339,1767234428304,-500.0,0.00011174,2]
[400259340,1767234428329,-500.0,0.00011174,2]
[400259341,1767234428351,-500.0,0.00011174,2]
[400259342,1767234428376,-316.29687067,0.00011174,2]
[400259343,1767234428399,-500.0,0.00011174,2]
[400259344,1767234428423,-500.0,0.00011174,2]
[400259345,1767234428445,-500.0,0.00011174,2]
[400259346,1767234428468,-500.0,0.00011174,2]
[400259347,1767234428491,-500.0,0.00011174,2]
[400259348,1767234428513,-500.0,0.00011174,2]
[400259349,1767234428535,-500.0,0.00011174,2]
[400259350,1767234428557,-500.0,0.00011174,2]
[400259351,1767234428580,-604.81476035,0.00011174,2]
[400259352,1767234428603,-500.0,0.00011174,2]
[400259353,1767234428625,-500.0,0.00011174,2]
[400259354,1767234428648,-410.21128691,0.00011174,2]
[400259355,1767234428669,-31315.19830038,0.00011175,2]
[400259356,1767234447076,-169.58126831,0.00011175,2]
[400259357,1767234447098,-151.1421776,0.00011175,2]
[400259369,1767234548170,-46475.37324076,0.00011175,2]
[400259403,1767234631776,-275.28991896,0.00011075,2]
[400259409,1767234631832,-10331.30795118,0.00011075,2]
[400259463,1767234632973,-308.0429104,0.00011075,2]
[400259507,1767234637794,-22839.38189453,0.00011075,2]
[400259508,1767234637806,-481.33546386,0.00011075,2]
[400259509,1767234637817,-518.21374153,0.00011075,2]
[400259510,1767234637856,-226015.18047681,0.00011075,2]
[400259511,1767234637865,-576.0,0.00011075,2]
[400259512,1767234637877,-50000.0,0.00011175,2]
[400259513,1767234637893,-183.30253918,0.00011175,2]
[400259514,1767234637908,-500.0,0.00011175,2]
[400259515,1767234637918,-637.86350529,0.00011175,2]
[400259516,1767234637928,-500.0,0.00011175,2]
[400259517,1767234637937,-500.0,0.00011175,2]
[400259518,1767234637947,-403.49041161,0.00011175,2]
[400259519,1767234637956,-500.0,0.00011175,2]
[400259520,1767234637966,-500.0,0.00011175,2]
[400259521,1767234637975,-500.0,0.00011175,2]
[400259522,1767234637984,-500.0,0.00011175,2]
[400259523,1767234637993,-500.0,0.00011175,2]
[400259524,1767234638003,-500.0,0.00011175,2]
[400259525,1767234638013,-500.0,0.00011175,2]
[400259526,1767234638022,-500.0,0.00011175,2]
[400259527,1767234638031,-500.0,0.00011175,2]
[400259528,1767234638040,-500.0,0.00011175,2]
[400259529,1767234638049,-500.0,0.00011175,2]
[400259530,1767234638059,-249.87804381,0.00011175,2]
[400259531,1767234638068,-500.0,0.00011175,2]
[400259532,1767234638077,-500.0,0.00011175,2]
[400259533,1767234638087,-368.47743007,0.00011175,2]
[400259534,1767234638097,-238.88174548,0.000118,2]
[400259535,1767234638107,-151.0,0.000119,2]
[400259536,1767234638116,-263.94,0.00012317,2]
[400259537,1767234638126,-6992.4416209,0.00013027,2]
[400259538,1767234638135,-200.10589661,0.00013175,2]
[400259539,1767234638145,-394.67904544,0.00013273,2]
[400259540,1767234638154,-527.88,0.00013437,2]
[400259541,1767234638163,-1682.55469545,0.0001354,2]
[400259542,1767234638173,-588.807908,0.00013699,2]
[400259543,1767234638182,-500.0,0.00013699,2]
[400259544,1767234638191,-500.27689491,0.00013699,2]
[400259545,1767234638200,-250.0,0.00013937,2]
[400259546,1767234638210,-791.82,0.00014557,2]
[400259547,1767234638221,-230.6305249,0.00015175,2]
[400259548,1767234638238,-6351.91270405,0.0001559,2]
[400259549,1767234638247,-1055.76,0.00015676,2]
[400259550,1767234638256,-317.0,0.000159,2]
[400259551,1767234638266,-100000.0,0.0001599,2]
[400259552,1767234638275,-500.0,0.00016438,2]
[400259553,1767234638284,-500.0,0.00016438,2]
[400259554,1767234638294,-500.0,0.00016438,2]
[400259555,1767234638303,-181.92347748,0.00016438,2]
[400259556,1767234638313,-1319.7,0.00016796,2]
[400259557,1767234638323,-111312.50125264,0.00017,2]
[400259558,1767234638333,-261.1551532,0.00017175,2]
[400259559,1767234638343,-1165.09113547,0.000176,2]
[400259560,1767234638353,-500.0,0.000176,2]
[400259561,1767234638362,-1583.63,0.00017916,2]
[400259562,1767234638372,-161574.54161847,0.00018,2]
[400259563,1767234638384,-1041.66666667,0.00018238,2]
[400259564,1767234638396,-1847.57,0.00019036,2]
[400259565,1767234638408,-291.67978149,0.00019175,2]
[400259566,1767234638419,-547.71,0.000192,2]
[400259567,1767234638428,-11127.48,0.000192,2]
[400259568,1767234638438,-200.2,0.00019331,2]
[400259569,1767234638447,-30000.0,0.00019501,2]
[400259570,1767234638457,-496.47127164,0.00019501,2]
[400259571,1767234638468,-214.78487748,0.00019501,2]
[400259575,1767234640070,-285.21512252,0.00019501,2]
[400259576,1767234640081,-500.0,0.00019501,2]
[400259577,1767234640091,-500.0,0.00019501,2]
[400259578,1767234640100,-500.0,0.00019501,2]
[400259579,1767234640109,-500.0,0.00019501,2]
[400259580,1767234640119,-500.0,0.00019501,2]
[400259581,1767234640128,-500.0,0.00019501,2]
[400259582,1767234640137,-500.0,0.00019501,2]
[400259584,1767234640147,-500.0,0.00019501,2]
[400259585,1767234640156,-500.0,0.00019501,2]
[400259586,1767234640165,-500.0,0.00019501,2]
[400259587,1767234640174,-500.0,0.00019501,2]
[400259588,1767234640183,-500.0,0.00019501,2]
[400259589,1767234640192,-500.0,0.00019501,2]
[400259590,1767234640202,-500.0,0.00019501,2]
[400259591,1767234640210,-2000.0,0.0002,14]
[400259592,1767234640219,-2000.0,0.0002,14]
[400259593,1767234640229,-2021.9,0.0002,14]
[400259594,1767234640238,-31110.0,0.00020049,2]
[400259595,1767234640247,-514.84070869,0.00020049,2]
[400259596,1767234640257,-2111.51,0.00020155,2]
[400259597,1767234640266,-588.807908,0.00020548,2]
[400259598,1767234640276,-32261.07,0.00020597,2]
[400259599,1767234640285,-533.88981491,0.00020597,2]
[400259600,1767234640294,-200.2,0.00020974,2]
[400259601,1767234640303,-2699.78229023,0.00021145,2]
[400259602,1767234640484,-13892.70042754,0.00021145,2]
[400259603,1767234641301,-4777.43011459,0.00021145,2]
[400259610,1767234646019,-12084.81675764,0.00021145,2]
[400259611,1767234646029,-553.64373807,0.00021145,2]
[400259612,1767234646038,-322.20440979,0.00021175,2]
[400259613,1767234646048,-2375.45,0.00021275,2]
[400259614,1767234646057,-34692.55458483,0.00021693,2]
[400259615,1767234646066,-574.12855637,0.00021693,2]
[400259616,1767234646075,-602.58566205,0.0002178,2]
[400259617,1767234646085,-226.0,0.00021836,5]
[400259618,1767234646094,-712.4955594,0.00021917,2]
[400259619,1767234646104,-500.0,0.00021917,2]
[400259620,1767234646113,-500.0,0.00021917,2]
[400259621,1767234646122,-500.0,0.00021917,2]
[400259622,1767234646131,-170.02778076,0.00021917,2]
[400259623,1767234646140,-1229.78,0.00021917,2]
[400259625,1767234646149,-500.0,0.00021917,2]
[400259627,1767234646159,-500.0,0.00021917,2]
[400259629,1767234646168,-500.0,0.00021917,2]
[400259631,1767234646178,-500.0,0.00021917,2]
[400259632,1767234646186,-500.0,0.00021917,2]
[400259633,1767234646195,-500.0,0.00021917,2]
[400259634,1767234646204,-1885.49,0.00021917,2]
[400259635,1767234646214,-500.0,0.00021917,2]
[400259636,1767234646223,-500.0,0.00021917,2]
[400259637,1767234646232,-500.0,0.00021917,2]
[400259638,1767234646241,-1154.59,0.00021917,2]
[400259639,1767234646250,-500.0,0.00021917,2]
[400259640,1767234646259,-500.0,0.00021917,2]
[400259641,1767234646269,-500.0,0.00021917,2]
[400259642,1767234646279,-500.0,0.00021917,2]
[400259643,1767234646288,-500.0,0.00021917,2]
[400259644,1767234646298,-500.0,0.00021917,2]
[400259645,1767234646307,-500.0,0.00021917,2]
[400259646,1767234646317,-259.89,0.00022,2]
[400259647,1767234646326,-159.23,0.00022,7]
[400259648,1767234646335,-276.98218884,0.00022,20]
[400259649,1767234646344,-712.4955594,0.00022191,2]
[400259650,1767234646354,-500.0,0.00022191,2]
[400259651,1767234646366,-500.0,0.00022191,2]
[400259652,1767234646375,-500.0,0.00022191,2]
[400259653,1767234646386,-1229.78,0.00022191,2]
[400259654,1767234646395,-500.0,0.00022191,2]
[400259655,1767234646404,-500.0,0.00022191,2]
[400259656,1767234646413,-500.0,0.00022191,2]
[400259657,1767234646422,-500.0,0.00022191,2]
[400259658,1767234646435,-500.0,0.00022191,2]
[400259659,1767234646443,-500.0,0.00022191,2]
[400259660,1767234646452,-1885.49,0.00022191,2]